bitfinex/quotes_SOLUSD_20230104
["timestamp","ask_amount","ask_price","bid_price","bid_amount"]
[1672868503810,21.7811836,13.115,13.101,113.2873]
[1672868504016,30.0,13.114,13.101,113.2873]
[1672868504346,51.7811836,13.114,13.101,113.2873]
[1672868504971,51.7811836,13.114,13.091,30.0]
[1672868504972,6.56,13.11,13.091,30.0]
[1672868505187,6.56,13.11,13.093,113.2873]
[1672868506551,30.0,13.109,13.093,113.2873]
[1672868507603,51.7811836,13.109,13.093,113.2873]
[1672868512314,30.0,13.109,13.093,113.2873]
[1672868517913,29.5,13.109,13.093,113.2873]
[1672868518445,29.5,13.109,13.094,30.0]
[1672868521472,29.5,13.109,13.093,113.2873]
[1672868522009,6.56,13.11,13.093,113.2873]
[1672868522635,6.56,13.11,13.099,30.0]
[1672868522840,6.56,13.11,13.1,20.0]
[1672868527792,6.56,13.11,13.099,144.8052]
[1672868527793,6.56,13.11,13.099,114.8052]
[1672868527977,6.56,13.11,13.101,30.0]
[1672868528412,6.56,13.11,13.094,30.0]
[1672868528623,6.56,13.11,13.095,110.0904]
[1672868529241,6.56,13.11,13.096,5.046]
[1672868530397,28.3411836,13.11,13.096,5.046]
[1672868530931,28.3411836,13.11,13.098,35.045]
[1672868531135,28.3411836,13.11,13.098,5.045]
[1672868531348,28.3411836,13.11,13.096,5.046]
[1672868533991,6.56,13.11,13.096,5.046]
[1672868534308,28.3411836,13.11,13.096,5.046]
[1672868536622,28.3411836,13.11,13.098,5.045]
[1672868536813,28.3411836,13.11,13.096,5.046]
[1672868541042,28.3411836,13.11,13.098,35.045]
[1672868541241,28.3411836,13.11,13.098,5.045]
[1672868543441,28.3411836,13.11,13.096,5.046]
[1672868545338,30.0,13.109,13.096,4.208]
[1672868545765,30.0,13.109,13.093,4.209]
[1672868546156,30.0,13.109,13.093,53.46771469]
[1672868548804,30.0,13.109,13.094,38.7811836]
[1672868549016,30.0,13.109,13.095,4.209]
[1672868549211,30.0,13.109,13.096,17.0]
[1672868549427,30.0,13.109,13.097,4.208]
[1672868549627,30.0,13.109,13.092,30.0]
[1672868549628,30.0,13.109,13.096,53.46771469]
[1672868550573,30.0,13.109,13.096,95.3012914]
[1672868553958,29.5,13.109,13.096,53.46771469]
[1672868554363,29.5,13.109,13.096,4.209]
[1672868556581,51.2811836,13.109,13.096,4.209]
[1672868556786,51.2811836,13.109,13.09,116.5754]
[1672868557005,30.0,13.107,13.09,12.7637]
[1672868557213,77.27,13.106,13.09,12.7637]
[1672868557409,30.0,13.105,13.09,12.7637]
[1672868557618,30.0,13.103,13.09,12.7637]
[1672868557945,30.0,13.101,13.09,12.7637]
[1672868558898,6.57,13.1,13.09,12.7637]
[1672868564702,30.0,13.099,13.09,12.7637]
[1672868565843,29.5,13.099,13.09,12.7637]
[1672868579000,29.0,13.099,13.09,12.7637]
[1672868593385,28.5,13.099,13.09,12.7637]
[1672868612664,30.0,13.097,13.09,12.7637]
[1672868613068,30.0,13.097,13.081,1.476289]
[1672868613295,6.61,13.09,13.08,6.67]
[1672868613598,6.61,13.09,13.08,28.4511836]
[1672868614659,30.0,13.097,13.08,28.4511836]
[1672868616146,30.0,13.096,13.081,16.68]
[1672868618322,30.0,13.095,13.081,16.68]
[1672868618535,30.0,13.095,13.081,127.2262]
[1672868619604,6.61,13.09,13.081,127.2262]
[1672868623398,6.61,13.09,13.077,14.85]
[1672868623589,122.8991,13.09,13.074,10.12]
[1672868623810,30.0,13.089,13.074,31.9011836]
[1672868624540,30.0,13.089,13.076,135.8333836]
[1672868624958,30.0,13.089,13.076,114.0522]
[1672868632844,147.1523,13.089,13.076,114.0522]
[1672868639784,147.1523,13.089,13.076,123.2732]
[1672868639998,117.1523,13.089,13.077,21.7811836]
[1672868640213,30.0,13.088,13.076,123.2732]
[1672868641354,30.0,13.088,13.076,145.0543836]
[1672868642739,57.33,13.092,13.076,145.0543836]
[1672868642940,175.8315,13.096,13.08,6.65]
[1672868643144,118.5215,13.096,13.081,26.484]
[1672868643351,118.5215,13.096,13.081,48.2651836]
[1672868643581,118.5215,13.096,13.083,30.0]
[1672868643791,118.5215,13.096,13.084,42.50894327]
[1672868644114,30.0,13.095,13.083,51.7811836]
[1672868644324,30.0,13.095,13.084,43.13593027]
[1672868644933,30.0,13.095,13.083,135.4089836]
[1672868645146,30.0,13.095,13.084,42.41927258]
[1672868645356,30.0,13.095,13.083,135.4089836]
[1672868647687,30.0,13.095,13.083,113.6278]
[1672868655560,30.0,13.095,13.083,113.1278]
[1672868655761,30.0,13.095,13.085,30.0]
[1672868655968,327.23,13.1,13.085,30.0]
[1672868656298,269.93,13.1,13.088,74.31303829]
[1672868656696,269.93,13.1,13.089,21.7811836]
[1672868656911,30.0,13.099,13.09,74.31303829]
[1672868657128,30.0,13.099,13.087,74.31303829]
[1672868657340,263.3,13.1,13.088,30.0]
[1672868657572,116.9947,13.104,13.091,74.31303829]
[1672868657794,116.9947,13.104,13.093,84.04065887]
[1672868657997,116.9947,13.104,13.094,30.0]
[1672868658200,116.9947,13.104,13.095,84.04065887]
[1672868661775,116.9947,13.104,13.093,84.04065887]
[1672868666621,116.9947,13.104,13.093,105.82184247]
[1672868666936,116.9947,13.104,13.095,84.04065887]
[1672868667332,116.9947,13.104,13.095,105.82184247]
[1672868674190,30.0,13.103,13.09,6.6]
[1672868676819,6.65,13.1,13.089,95.69570747]
[1672868677020,30.0,13.098,13.082,2.266]
[1672868677235,109.1438,13.097,13.082,2.266]
[1672868677553,30.0,13.095,13.082,2.266]
[1672868679859,118.1507,13.096,13.082,41.0471836]
[1672868680074,118.1507,13.096,13.083,30.0]
[1672868680281,118.1507,13.096,13.084,17.0]
[1672868687129,118.1507,13.096,13.084,30.0]
[1672868687314,118.1507,13.096,13.085,17.0]
[1672868689104,118.1507,13.096,13.084,17.0]
[1672868690063,175.4607,13.096,13.084,17.0]
[1672868690265,118.1507,13.096,13.084,17.0]
[1672868690922,118.1507,13.096,13.083,17.0]
[1672868694272,118.1507,13.096,13.083,38.7811836]
[1672868694489,30.0,13.095,13.083,38.7811836]
[1672868698807,30.0,13.095,13.083,17.0]
[1672868699118,30.0,13.095,13.082,19.266]
[1672868700175,175.4607,13.096,13.082,19.266]
[1672868700360,30.0,13.095,13.082,2.266]
[1672868701307,30.0,13.093,13.082,2.266]
[1672868703223,57.32,13.094,13.082,2.266]
[1672868703409,87.32,13.095,13.082,2.266]
[1672868705731,30.0,13.094,13.082,2.266]
[1672868705946,30.0,13.092,13.082,2.266]
[1672868706268,30.0,13.09,13.082,2.266]
[1672868706458,51.54052757,13.089,13.082,2.266]
[1672868709632,51.54052757,13.089,13.082,24.0471836]
[1672868710053,51.54052757,13.089,13.082,2.266]
[1672868711626,51.54052757,13.089,13.082,24.0471836]
[1672868713080,112.7374,13.09,13.082,24.0471836]
[1672868718467,74.35497173,13.089,13.082,24.0471836]
[1672868719085,44.35497173,13.089,13.082,24.0471836]
[1672868719711,112.7374,13.09,13.082,24.0471836]
[1672868720033,30.0,13.089,13.082,24.0471836]
[1672868720240,42.81954112,13.088,13.082,24.0471836]
[1672868721072,42.81954112,13.088,13.082,2.266]
[1672868721073,87.35,13.087,13.082,2.266]
[1672868721288,30.0,13.086,13.082,2.266]
[1672868721812,57.36,13.085,13.071,30.0]
[1672868722026,30.0,13.084,13.071,30.0]
[1672868722233,57.36,13.085,13.071,30.0]
[1672868722441,30.0,13.084,13.071,30.0]
[1672868722651,81.27305347,13.083,13.071,30.0]
[1672868722861,81.27305347,13.081,13.071,30.0]
[1672868723070,81.27305347,13.083,13.071,30.0]
[1672868723511,30.0,13.082,13.07,36.63]
[1672868723707,81.27305347,13.081,13.071,17.0]
[1672868724129,81.27305347,13.081,13.071,38.7811836]
[1672868724332,81.27305347,13.083,13.071,38.7811836]
[1672868726455,87.36,13.086,13.072,30.0]
[1672868726668,87.36,13.086,13.073,17.0]
[1672868726871,87.36,13.086,13.073,38.7811836]
[1672868727069,87.36,13.086,13.074,21.7811836]
[1672868727403,87.36,13.086,13.075,17.0]
[1672868728031,87.36,13.086,13.075,38.7811836]
[1672868728432,57.36,13.086,13.075,38.7811836]
[1672868728637,30.0,13.087,13.075,38.7811836]
[1672868728866,57.35,13.088,13.075,38.7811836]
[1672868730437,30.0,13.087,13.075,38.7811836]
[1672868733270,87.35,13.088,13.075,38.7811836]
[1672868734526,30.0,13.087,13.075,38.7811836]
[1672868735576,87.35,13.088,13.075,38.7811836]
[1672868735793,57.35,13.088,13.075,38.7811836]
[1672868738626,168.7076,13.089,13.075,38.7811836]
[1672868741698,112.7374,13.09,13.08,6.63]
[1672868741900,112.7374,13.09,13.082,30.0]
[1672868742117,112.7374,13.09,13.083,17.0]
[1672868742324,112.7374,13.09,13.083,38.7811836]
[1672868742531,112.7374,13.09,13.084,21.7811836]
[1672868747496,112.7374,13.09,13.072,35.43361049]
[1672868747680,30.0,13.089,13.077,20.0]
[1672868747891,30.0,13.089,13.077,50.0]
[1672868748745,139.5754836,13.096,13.094,470.9326]
[1672868749069,33.27,13.1,13.094,1132.72722768]
[1672868749271,21.7811836,13.098,13.095,31.06942579]
[1672868750956,21.7811836,13.098,13.081,30.0]
[1672868751294,343.4426,13.103,13.081,30.0]
[1672868751295,116.9947,13.104,13.081,30.0]
[1672868751464,33.2,13.1,13.082,36.11990826]
[1672868751670,57.3,13.099,13.082,21.7811836]
[1672868752001,30.0,13.098,13.082,21.7811836]
[1672868752215,57.31,13.097,13.082,21.7811836]
[1672868752406,30.0,13.096,13.082,21.7811836]
[1672868752617,57.32,13.095,13.082,21.7811836]
[1672868755582,30.0,13.095,13.082,21.7811836]
[1672868755910,57.32,13.094,13.082,21.7811836]
[1672868756515,30.0,13.094,13.082,21.7811836]
[1672868757382,57.32,13.095,13.082,21.7811836]
[1672868759497,30.0,13.094,13.082,21.7811836]
[1672868762854,87.32,13.095,13.082,21.7811836]
[1672868763802,30.0,13.094,13.082,21.7811836]
[1672868763986,30.0,13.094,13.083,17.0]
[1672868764827,30.0,13.094,13.082,47.0]
[1672868765357,30.0,13.094,13.082,17.0]
[1672868767374,87.32,13.094,13.082,17.0]
[1672868767564,30.0,13.094,13.082,17.0]
[1672868768526,57.33,13.093,13.082,17.0]
[1672868768843,87.32,13.094,13.082,17.0]
[1672868772523,87.32,13.094,13.081,115.3334]
[1672868782517,57.32,13.094,13.081,115.3334]
[1672868785353,87.32,13.095,13.081,115.3334]
[1672868788933,57.32,13.095,13.081,115.3334]
[1672868789136,57.32,13.095,13.082,47.0]
[1672868789346,165.8263,13.096,13.082,47.0]
[1672868789669,165.8263,13.096,13.084,30.0]
[1672868790512,165.8263,13.096,13.083,115.1027]
[1672868791131,30.0,13.095,13.083,115.1027]
[1672868802400,108.5163,13.096,13.083,115.1027]
[1672868803136,30.0,13.095,13.083,115.1027]
[1672868808784,6.64,13.09,13.081,162.5934]
[1672868808999,29.85828177,13.089,13.081,115.3334]
[1672868809438,29.85828177,13.089,13.077,40.11]
[1672868809635,59.85828177,13.089,13.077,40.11]
[1672868813433,29.85828177,13.089,13.077,40.11]
[1672868814587,59.85828177,13.089,13.077,40.11]
[1672868816583,29.85828177,13.089,13.077,40.11]
[1672868816797,29.85828177,13.089,13.079,30.0]
[1672868817637,29.85828177,13.089,13.078,47.0]
[1672868818031,166.6587,13.097,13.08,6.64]
[1672868818242,109.3487,13.097,13.082,6.7961452]
[1672868818465,109.3487,13.097,13.084,44.35491824]
[1672868818870,109.3487,13.097,13.087,14.58043761]
[1672868824450,109.3487,13.097,13.085,17.0]
[1672868825192,109.3487,13.097,13.086,30.93599221]
[1672868828674,172.5195,13.103,13.087,17.0]
[1672868828890,172.5195,13.103,13.089,30.0]
[1672868829075,172.5195,13.103,13.09,26.98912716]
[1672868830436,30.0,13.102,13.09,26.98912716]
[1672868832038,172.5195,13.103,13.09,26.98912716]
[1672868832253,30.0,13.102,13.09,26.98912716]
[1672868833304,30.0,13.1,13.09,26.98912716]
[1672868833711,87.29,13.102,13.09,26.98912716]
[1672868833920,30.0,13.102,13.09,61.03575993]
[1672868836664,57.29,13.101,13.09,34.04663277]
[1672868836991,87.29,13.102,13.09,34.04663277]
[1672868838140,87.29,13.102,13.091,3.43287439]
[1672868838355,87.29,13.102,13.09,34.04663277]
[1672868839189,57.29,13.102,13.09,34.04663277]
[1672868839396,172.5195,13.103,13.091,2.71677879]
[1672868839607,30.0,13.102,13.09,34.04663277]
[1672868840641,172.5195,13.103,13.09,34.04663277]
[1672868840642,57.28,13.103,13.091,30.0]
[1672868840853,116.9947,13.104,13.092,22.69196428]
[1672868841068,116.9947,13.104,13.093,30.0]
[1672868841404,116.9947,13.104,13.094,26.04789745]
[1672868841604,116.9947,13.104,13.094,60.09453022]
[1672868841926,116.9947,13.104,13.095,34.04663277]
[1672868842114,116.9947,13.104,13.096,26.04789745]
[1672868843803,116.9947,13.104,13.097,41.7599661]
[1672868844022,116.9947,13.104,13.098,26.04789745]
[1672868844339,116.9947,13.104,13.099,41.7599661]
[1672868844551,116.9947,13.104,13.1,26.04789745]
[1672868847718,116.9947,13.104,13.097,26.04789745]
[1672868848123,116.9947,13.104,13.097,67.80786355]
[1672868850251,57.26,13.108,13.097,67.80786355]
[1672868850435,165.6459,13.109,13.098,41.7599661]
[1672868850650,165.6459,13.109,13.099,26.04789745]
[1672868852447,165.6459,13.109,13.099,41.7599661]
[1672868852760,30.0,13.108,13.1,26.04789745]
[1672868854324,30.0,13.108,13.1,41.7599661]
[1672868855392,30.0,13.108,13.101,41.78016357]
[1672868855711,165.6459,13.109,13.102,26.04789745]
[1672868856027,57.26,13.109,13.102,26.04789745]
[1672868856963,57.26,13.109,13.1,41.7599661]
[1672868857180,57.26,13.109,13.101,26.04789745]
[1672868858844,93.87,13.11,13.101,26.04789745]
[1672868861370,93.87,13.11,13.101,67.80786355]
[1672868861697,93.87,13.11,13.101,109.58802712]
[1672868863793,63.87,13.11,13.101,109.58802712]
[1672868865071,63.87,13.11,13.101,67.82806102]
[1672868865261,6.62,13.11,13.101,67.82806102]
[1672868868411,6.62,13.11,13.101,26.04789745]
[1672868868740,6.62,13.11,13.099,26.04789745]
[1672868869580,36.62,13.11,13.099,26.04789745]
[1672868870308,36.62,13.11,13.099,74.51612133]
[1672868870620,6.62,13.11,13.099,74.51612133]
[1672868871373,36.62,13.11,13.099,74.51612133]
[1672868872424,36.62,13.11,13.099,113.71251187]
[1672868872827,36.62,13.11,13.099,87.66461442]
[1672868873039,6.62,13.11,13.099,87.66461442]
[1672868873253,6.62,13.11,13.1,26.04789745]
[1672868873876,6.62,13.11,13.1,74.51612133]
[1672868875871,36.62,13.11,13.1,74.51612133]
[1672868879245,36.62,13.11,13.1,48.46822388]
[1672868879686,6.62,13.11,13.1,48.46822388]
[1672868879871,6.62,13.11,13.101,3.18898159]
[1672868880077,36.62,13.11,13.101,3.18898159]
[1672868880291,36.62,13.11,13.102,48.46822388]
[1672868880501,6.62,13.11,13.102,48.46822388]
[1672868881027,6.57,13.11,13.102,48.46822388]
[1672868881236,36.57,13.11,13.102,48.46822388]
[1672868884412,36.57,13.11,13.097,114.8928]
[1672868884726,36.57,13.11,13.099,30.0]
[1672868884925,36.57,13.11,13.098,48.46822388]
[1672868888821,6.57,13.11,13.099,31.32855478]
[1672868889035,6.57,13.11,13.099,30.0]
[1672868889239,6.57,13.11,13.1,2.06446667]
[1672868889772,6.57,13.11,13.1,50.53269055]
[1672868889983,6.57,13.11,13.1,48.46822388]
[1672868890742,36.57,13.11,13.1,48.46822388]
[1672868891767,6.57,13.11,13.1,48.46822388]
[1672868892316,36.57,13.11,13.1,48.46822388]
[1672868892498,6.57,13.11,13.1,48.46822388]
[1672868897778,36.57,13.11,13.1,48.46822388]
[1672868898498,6.57,13.11,13.1,48.46822388]
[1672868901571,36.57,13.11,13.1,48.46822388]
[1672868902086,6.57,13.11,13.1,48.46822388]
[1672868903138,36.57,13.11,13.1,48.46822388]
[1672868903567,6.57,13.11,13.1,48.46822388]
[1672868904701,6.57,13.11,13.097,114.8928]
[1672868904919,6.57,13.11,13.099,30.0]
[1672868905136,6.57,13.11,13.1,17.0]
[1672868905455,6.57,13.11,13.1,71.18822388]
[1672868905669,6.57,13.11,13.101,54.18822388]
[1672868907764,6.57,13.11,13.1,17.0]
[1672868908080,6.57,13.11,13.099,17.0]
[1672868908391,6.62,13.11,13.099,17.0]
[1672868908582,36.62,13.11,13.099,17.0]
[1672868909142,36.62,13.11,13.098,47.0]
[1672868909531,36.62,13.11,13.098,17.0]
[1672868911130,6.62,13.11,13.098,47.0]
[1672868911540,6.62,13.11,13.1,6.56]
[1672868911745,26.48,13.12,13.101,30.40909833]
[1672868911746,57.22,13.117,13.101,30.40909833]
[1672868911960,150.7333,13.12,13.101,194.69132221]
[1672868912162,30.0,13.117,13.102,30.0]
[1672868912373,30.0,13.117,13.103,30.40909833]
[1672868914504,30.0,13.117,13.102,30.40909833]
[1672868917562,30.0,13.117,13.104,30.0]
[1672868917773,30.0,13.117,13.106,30.0]
[1672868917983,30.0,13.117,13.107,30.40909833]
[1672868918385,30.0,13.117,13.105,30.40909833]
[1672868919547,108.0184,13.118,13.105,30.40909833]
[1672868919763,108.0184,13.118,13.108,30.40909833]
[1672868920704,108.0184,13.118,13.107,30.40909833]
[1672868920912,108.0184,13.118,13.108,30.0]
[1672868921229,108.0184,13.118,13.109,30.40909833]
[1672868921435,108.0184,13.118,13.108,30.0]
[1672868921645,108.0184,13.118,13.109,47.40909833]
[1672868923122,57.19,13.124,13.11,30.0]
[1672868923351,57.19,13.124,13.111,31.06942579]
[1672868925637,108.6818,13.125,13.112,30.0]
[1672868925855,108.6818,13.125,13.113,31.06942579]
[1672868926064,108.6818,13.125,13.114,30.0]
[1672868926398,108.6818,13.125,13.115,31.06942579]
[1672868927966,108.6818,13.125,13.113,31.06942579]
[1672868928179,30.0,13.124,13.112,31.06942579]
[1672868928396,30.0,13.124,13.113,30.0]
[1672868928711,30.0,13.124,13.114,31.06942579]
[1672868929844,30.0,13.124,13.112,61.06942579]
[1672868932634,108.6818,13.125,13.112,61.06942579]
[1672868932933,108.6818,13.125,13.112,31.06942579]
[1672868933123,87.19,13.124,13.112,31.06942579]
[1672868935968,6.62,13.12,13.112,31.06942579]
[1672868936174,6.62,13.12,13.105,141.0358]
[1672868936383,36.62,13.12,13.105,141.0358]
[1672868937458,36.62,13.12,13.107,30.0]
[1672868940289,6.62,13.12,13.107,30.0]
[1672868942719,6.62,13.12,13.106,17.0]
[1672868944801,6.62,13.12,13.106,38.7811836]
[1672868944995,6.62,13.12,13.107,30.0]
[1672868945213,6.62,13.12,13.108,17.0]
[1672868946156,30.0,13.122,13.108,17.0]
[1672868952695,108.9811836,13.123,13.108,17.0]
[1672868952899,57.2,13.123,13.108,38.7811836]
[1672868953425,30.0,13.122,13.108,38.7811836]
[1672868954056,30.0,13.122,13.108,17.0]
[1672868954263,30.0,13.122,13.107,17.0]
[1672868954794,30.0,13.122,13.107,38.7811836]
[1672868958685,6.61,13.12,13.107,17.0]
[1672868959093,6.61,13.12,13.106,17.0]
[1672868959302,6.61,13.12,13.106,47.0]
[1672868960983,6.61,13.12,13.107,30.0]
[1672868962792,6.61,13.12,13.108,17.0]
[1672868964350,30.0,13.122,13.108,17.0]
[1672868969730,51.7811836,13.123,13.108,17.0]
[1672868969933,30.0,13.123,13.108,38.7811836]
[1672868970464,30.0,13.123,13.108,77.97805041]
[1672868973615,30.0,13.123,13.105,150.81784282]
[1672868973616,6.62,13.12,13.105,111.0358]
[1672868973829,6.62,13.12,13.105,132.8169836]
[1672868974763,6.62,13.12,13.105,111.0358]
[1672868975388,30.0,13.119,13.105,111.0358]
[1672868975610,57.22,13.118,13.105,111.0358]
[1672868975813,30.0,13.117,13.105,111.0358]
[1672868977617,30.0,13.115,13.105,111.0358]
[1672868978544,11.91879118,13.114,13.104,110.8786]
[1672868981715,30.0,13.115,13.104,110.8786]
[1672868981932,10.9600881,13.114,13.104,110.8786]
[1672868982138,30.0,13.115,13.104,110.8786]
[1672868982352,10.95494539,13.114,13.104,110.8786]
[1672868982560,30.0,13.115,13.104,110.8786]
[1672868984113,11.42654159,13.114,13.101,110.4417]
[1672868985915,6.56,13.11,13.099,450.63731057]
[1672868986128,30.0,13.108,13.091,585.37210014]
[1672868986333,42.89172006,13.107,13.095,21.7811836]
[1672868989390,42.89172006,13.107,13.092,454.69255416]
[1672868989602,30.0,13.106,13.094,30.0]
[1672868989813,42.89172006,13.105,13.093,21.7811836]
[1672868990232,30.0,13.104,13.092,454.69255416]
[1672868990441,44.86209275,13.103,13.092,454.69255416]
[1672868991510,44.86209275,13.103,13.091,112.6569]
[1672868992426,44.86209275,13.103,13.085,42.65192014]
[1672868992637,6.56,13.1,13.086,109.02609497]
[1672868992969,52.97123308,13.097,13.086,109.02609497]
[1672868993800,30.0,13.096,13.086,109.02609497]
[1672868994011,52.97123308,13.095,13.086,109.02609497]
[1672868994529,52.97123308,13.099,13.09,6.62]
[1672868994741,52.97123308,13.103,13.09,6.62]
[1672868995072,52.97123308,13.103,13.092,30.0]
[1672868995261,52.97123308,13.103,13.093,17.0]
[1672868995471,52.97123308,13.103,13.091,47.0]
[1672869000531,112.0331,13.104,13.092,30.0]
[1672869000722,112.0331,13.104,13.093,17.0]
[1672869002523,11.06917237,13.107,13.093,17.0]
[1672869002736,57.24,13.112,13.093,38.7811836]
[1672869002954,57.24,13.113,13.094,30.0]
[1672869003160,57.24,13.113,13.095,17.0]
[1672869003568,87.24,13.113,13.096,30.0]
[1672869003788,57.24,13.113,13.097,37.0]
[1672869003997,87.24,13.114,13.098,30.0]
[1672869004208,87.24,13.114,13.099,17.0]
[1672869004418,57.24,13.114,13.1,30.0]
[1672869004629,57.24,13.114,13.101,17.0]
[1672869007690,57.24,13.114,13.1,30.0]
[1672869008007,87.24,13.114,13.1,30.0]
[1672869009043,57.24,13.114,13.1,30.0]
[1672869009678,57.17033361,13.114,13.1,30.0]
[1672869014317,87.17033361,13.114,13.098,30.0]
[1672869014515,87.17033361,13.114,13.099,17.0]
[1672869014929,57.17033361,13.114,13.099,17.0]
[1672869018414,57.17033361,13.114,13.1,6.62]
[1672869018607,113.8457,13.115,13.101,17.0]
[1672869023885,30.0,13.113,13.101,17.0]
[1672869024412,57.24,13.114,13.101,17.0]
[1672869025889,113.8457,13.115,13.101,17.0]
[1672869026517,57.23,13.116,13.101,17.0]
[1672869026726,30.0,13.116,13.101,17.0]
[1672869026941,57.23,13.115,13.103,30.0]
[1672869027136,57.23,13.115,13.104,17.0]
[1672869028283,57.23,13.116,13.104,17.0]
[1672869029447,30.0,13.116,13.104,17.0]
[1672869029656,57.23,13.115,13.104,17.0]
[1672869030087,57.23,13.116,13.104,17.0]
[1672869031349,57.22,13.117,13.104,17.0]
[1672869031562,30.0,13.116,13.104,17.0]
[1672869031769,57.23,13.115,13.104,17.0]
[1672869033559,30.0,13.115,13.104,17.0]
[1672869033752,57.23,13.116,13.104,17.0]
[1672869033962,57.22,13.117,13.104,17.0]
[1672869038591,175.8247,13.118,13.104,17.0]
[1672869045411,175.8247,13.118,13.105,21.7811836]
[1672869045627,175.8247,13.118,13.107,30.0]
[1672869046049,175.8247,13.118,13.108,17.0]
[1672869051848,175.8247,13.118,13.107,17.0]
[1672869054565,57.21,13.119,13.107,17.0]
[1672869054895,57.2,13.122,13.11,6.62]
[1672869055203,57.19,13.124,13.113,22.9629047]
[1672869059726,57.19,13.124,13.112,22.9629047]
[1672869059941,57.19,13.124,13.114,22.9629047]
[1672869062444,57.19,13.124,13.113,22.9629047]
[1672869063092,57.19,13.124,13.114,21.7811836]
[1672869063307,57.19,13.124,13.115,22.9629047]
[1672869065611,57.19,13.124,13.116,51.7811836]
[1672869065804,110.5495,13.125,13.117,22.9629047]
[1672869066014,110.5495,13.125,13.117,44.7440883]
[1672869066235,110.5495,13.125,13.118,21.7811836]
[1672869066447,110.5495,13.125,13.119,22.9629047]
[1672869066866,110.5495,13.125,13.121,22.9629047]
[1672869067499,110.5495,13.125,13.115,22.9629047]
[1672869067915,110.5495,13.125,13.114,52.9629047]
[1672869068126,110.5495,13.125,13.114,22.9629047]
[1672869070477,30.0,13.124,13.114,22.9629047]
[1672869070680,30.0,13.124,13.111,108.3449]
[1672869070681,30.0,13.122,13.111,108.3449]
[1672869070896,30.0,13.122,13.1,500.84623777]
[1672869070897,6.61,13.12,13.107,113.1363]
[1672869071209,30.0,13.118,13.107,113.1363]
[1672869071401,57.22,13.117,13.107,113.1363]
[1672869071616,143.8111,13.118,13.107,113.1363]
[1672869076256,113.8111,13.118,13.107,113.1363]
[1672869079282,113.8111,13.118,13.108,30.0]
[1672869082969,113.8111,13.118,13.107,113.1363]
[1672869083294,113.8111,13.118,13.109,30.0]
[1672869083907,113.8111,13.118,13.108,47.0]
[1672869085929,113.8111,13.118,13.108,30.0]
[1672869087506,113.8111,13.118,13.107,113.1363]
[1672869087708,108.8111,13.118,13.108,30.0]
[1672869088860,108.8111,13.118,13.107,113.1363]
[1672869092755,108.8111,13.118,13.104,117.8413]
[1672869092972,30.0,13.117,13.104,117.8413]
[1672869093708,87.22,13.117,13.104,117.8413]
[1672869096325,30.0,13.116,13.104,117.8413]
[1672869096541,57.23,13.115,13.104,117.8413]
[1672869096756,87.23,13.116,13.104,117.8413]
[1672869098858,87.23,13.116,13.102,115.901]